bitfinex-derivatives/quotes_BTCF0:USTF0_20250924
["timestamp","ask_amount","ask_price","bid_price","bid_amount"]
[1758715072152,0.11933144,113090.0,113080.0,0.57621853]
[1758715072338,0.92233144,113090.0,113080.0,0.57621853]
[1758715072739,0.92233144,113090.0,113080.0,0.93701853]
[1758715078148,0.92233144,113090.0,113080.0,1.00823869]
[1758715079050,0.11933144,113090.0,113080.0,1.00823869]
[1758715079251,0.92225144,113090.0,113080.0,1.00823869]
[1758715085654,0.92225144,113090.0,113080.0,0.89688451]
[1758715087160,0.11933144,113090.0,113080.0,0.89688451]
[1758715087353,0.92221144,113090.0,113080.0,0.89688451]
[1758715088858,0.92217144,113090.0,113080.0,0.89688451]
[1758715092562,0.92217144,113090.0,113080.0,1.00823869]
[1758715094261,0.92217144,113090.0,113080.0,0.89688451]
[1758715098967,0.92217144,113090.0,113080.0,0.64910421]
[1758715099162,0.92217144,113090.0,113080.0,0.80847951]
[1758715099356,0.92217144,113090.0,113080.0,0.22290192]
[1758715099357,1.53075174,113090.0,113080.0,0.22290192]
[1758715099562,1.53075174,113090.0,113080.0,0.20139192]
[1758715099760,1.53075174,113090.0,113080.0,0.13017176]
[1758715099962,1.53075174,113090.0,113080.0,0.005]
[1758715100468,1.53075174,113090.0,113080.0,0.11643176]
[1758715101467,1.93075174,113090.0,113080.0,0.11643176]
[1758715101968,1.93075174,113090.0,113080.0,0.005]
[1758715102468,1.28285144,113090.0,113080.0,0.03939]
[1758715102670,0.48013144,113090.0,113080.0,0.2871703]
[1758715102870,1.28285144,113090.0,113080.0,0.2871703]
[1758715103465,1.28285144,113090.0,113080.0,0.15082176]
[1758715103665,1.68285144,113090.0,113080.0,0.15082176]
[1758715104267,1.68285144,113090.0,113080.0,0.23922676]
[1758715104466,1.68285144,113090.0,113080.0,0.15082176]
[1758715105162,0.48013144,113090.0,113080.0,0.15082176]
[1758715105365,0.48013144,113090.0,113080.0,0.39860206]
[1758715105566,1.28285144,113090.0,113080.0,0.39860206]
[1758715106777,0.48013144,113090.0,113080.0,0.57543611]
[1758715106971,1.28285144,113090.0,113080.0,0.57543611]
[1758715107176,1.28285144,113090.0,113080.0,0.46400435]
[1758715107875,0.48013144,113090.0,113080.0,0.46400435]
[1758715108072,0.92205144,113090.0,113080.0,0.93623611]
[1758715108465,0.92205144,113090.0,113080.0,0.82480435]
[1758715110876,0.92201144,113090.0,113080.0,0.82480435]
[1758715111378,0.92201144,113090.0,113080.0,0.83345055]
[1758715116384,0.92201144,113090.0,113080.0,0.82480435]
[1758715116575,0.11933144,113090.0,113080.0,0.82480435]
[1758715116775,0.92197144,113090.0,113080.0,0.82480435]
[1758715117180,0.92197144,113090.0,113080.0,0.57702405]
[1758715117474,0.92197144,113090.0,113080.0,0.82480435]
[1758715118078,0.92197144,113090.0,113080.0,0.93623611]
[1758715118274,0.11933144,113090.0,113080.0,0.93623611]
[1758715118474,0.92193144,113090.0,113080.0,0.93623611]
[1758715119380,0.9009526,113090.0,113080.0,0.93623611]
[1758715119581,0.9009526,113090.0,113080.0,0.95402193]
[1758715120882,0.9009526,113090.0,113080.0,0.84259017]
[1758715121978,0.9009526,113090.0,113080.0,0.48179017]
[1758715122183,0.9009526,113090.0,113080.0,0.84259017]
[1758715122977,0.9009526,113090.0,113080.0,0.84272082]
[1758715123984,0.0983526,113090.0,113080.0,0.84272082]
[1758715124183,0.9009126,113090.0,113080.0,0.84272082]
[1758715124584,0.9009126,113090.0,113080.0,0.87365838]
[1758715126284,0.9009126,113090.0,113080.0,0.85574191]
[1758715126585,0.9009126,113090.0,113080.0,0.87368029]
[1758715129587,0.0983526,113090.0,113080.0,0.87368029]
[1758715129787,0.9008726,113090.0,113080.0,0.87368029]
[1758715129980,0.9008726,113090.0,113080.0,0.59496243]
[1758715130180,0.9008726,113090.0,113080.0,0.87368029]
[1758715130380,1.17959046,113090.0,113080.0,0.87368029]
[1758715134292,0.9008726,113090.0,113080.0,0.87368029]
[1758715139192,0.9008726,113090.0,113080.0,0.98500882]
[1758715139693,1.17959046,113090.0,113080.0,0.98500882]
[1758715140295,1.17959046,113090.0,113080.0,0.87368029]
[1758715142495,1.17951046,113090.0,113080.0,0.87368029]
[1758715145200,1.54031046,113090.0,113080.0,0.42447529]
[1758715145599,1.54031046,113090.0,113080.0,0.51288009]
[1758715145897,1.54031046,113090.0,113080.0,0.62432433]
[1758715146100,1.54031046,113090.0,113080.0,0.34560647]
[1758715146301,1.54031046,113090.0,113080.0,0.62432433]
[1758715146798,1.54031046,113090.0,113080.0,0.53589528]
[1758715147702,1.54031046,113090.0,113080.0,0.25717742]
[1758715148400,1.54031046,113090.0,113080.0,0.53589528]
[1758715150102,0.73787046,113090.0,113080.0,0.53589528]
[1758715150304,1.54027046,113090.0,113080.0,0.53589528]
[1758715151001,1.54027046,113090.0,113080.0,0.42445104]
[1758715153604,1.17947046,113090.0,113080.0,0.42445104]
[1758715154805,0.37707046,113090.0,113080.0,0.42445104]
[1758715155003,1.17943046,113090.0,113080.0,0.42445104]
[1758715157102,0.37707046,113090.0,113080.0,0.42445104]
[1758715157296,1.17939046,113090.0,113080.0,0.42445104]
[1758715157803,0.0983526,113090.0,113080.0,0.42445104]
[1758715158002,1.17939046,113090.0,113080.0,0.42445104]
[1758715158704,1.17939046,113090.0,113080.0,0.42445144]
[1758715158899,1.17939046,113090.0,113080.0,0.14573358]
[1758715159101,1.17939046,113090.0,113080.0,0.42445144]
[1758715159599,1.17939046,113090.0,113080.0,0.33604624]
[1758715165909,1.17939046,113090.0,113080.0,0.05732838]
[1758715166207,1.17939046,113090.0,113080.0,0.33604624]
[1758715169010,1.17939046,113090.0,113080.0,0.05732838]
[1758715169210,1.17939046,113090.0,113080.0,0.33604624]
[1758715169415,1.17939046,113090.0,113080.0,0.44745445]
[1758715170505,1.17939046,113090.0,113080.0,0.16873659]
[1758715170705,1.54019046,113090.0,113080.0,0.44745445]
[1758715171712,1.54019046,113090.0,113080.0,0.15079821]
[1758715171905,1.54019046,113090.0,113080.0,0.12930821]
[1758715176416,1.54019046,113090.0,113080.0,0.11640821]
[1758715176618,1.54019046,113090.0,113080.0,0.005]
[1758715183315,1.94019046,113090.0,113080.0,0.005]
[1758715186511,1.6614726,113090.0,113080.0,0.005]
[1758715186714,1.90931077,113090.0,113080.0,0.005]
[1758715200322,1.50931077,113090.0,113080.0,0.005]
[1758715200522,1.90931077,113090.0,113080.0,0.005]
[1758715203527,1.90899077,113090.0,113080.0,0.005]
[1758715203724,1.6611526,113090.0,113080.0,0.005]
[1758715204022,0.4591526,113090.0,113080.0,0.04123]
[1758715204228,1.50899077,113090.0,113080.0,0.04123]
[1758715205728,1.2611526,113090.0,113080.0,0.04123]
[1758715205927,1.50899077,113090.0,113080.0,0.01868]
[1758715206129,1.50899077,113090.0,113080.0,0.005]
[1758715208729,0.70699077,113090.0,113080.0,0.04123]
[1758715208924,1.50899077,113090.0,113080.0,0.04123]
[1758715209730,1.50899077,113090.0,113080.0,0.01868]
[1758715210834,1.50899077,113090.0,113080.0,0.005]
[1758715216138,1.2611526,113090.0,113080.0,0.005]
[1758715216431,0.70699077,113090.0,113080.0,0.04123]
[1758715216637,1.50899077,113090.0,113080.0,0.005]
[1758715219234,1.50899077,113090.0,113080.0,0.0408]
[1758715220141,1.50899077,113090.0,113080.0,0.01825]
[1758715221641,1.2611526,113090.0,113080.0,0.01825]
[1758715221939,1.50899077,113090.0,113080.0,0.01825]
[1758715223740,1.52983513,113090.0,113080.0,0.01825]
[1758715223946,1.52983513,113090.0,113080.0,0.005]
[1758715234055,1.28199696,113090.0,113080.0,0.005]
[1758715234264,1.52983513,113090.0,113080.0,0.04132]
[1758715235362,1.52983513,113090.0,113080.0,0.01825]
[1758715242463,1.52983513,113090.0,113080.0,0.04132]
[1758715247778,1.52983513,113090.0,113080.0,0.01825]
[1758715248580,1.56079054,113090.0,113080.0,0.01825]
[1758715251986,1.56079054,113090.0,113080.0,0.005]
[1758715260193,1.28199696,113090.0,113080.0,0.005]
[1758715260390,1.56079054,113090.0,113080.0,0.005]
[1758715269892,0.01292,113080.0,113070.0,0.11140821]
[1758715270195,1.10811486,113080.0,113060.0,0.10099226]
[1758715270395,1.81646856,113070.0,113060.0,0.12331226]
[1758715271500,1.52967498,113070.0,113060.0,0.12331226]
[1758715272097,1.52967498,113070.0,113060.0,0.12931226]
[1758715272298,1.52967498,113070.0,113060.0,0.13131226]
[1758715276201,1.52967498,113070.0,113060.0,0.24272047]
[1758715276402,1.52967498,113070.0,113060.0,0.17340262]
[1758715277702,1.80846856,113070.0,113060.0,0.17340262]
[1758715278205,1.80846856,113070.0,113060.0,0.02593441]
[1758715278909,1.80846856,113070.0,113060.0,0.02393441]
[1758715279111,1.80946856,113070.0,113060.0,0.02393441]
[1758715279312,1.80946856,113070.0,113060.0,0.01793441]
[1758715279608,1.81346856,113070.0,113060.0,0.01793441]
[1758715283614,1.2558814,113070.0,113060.0,0.01793441]
[1758715283812,1.81346856,113070.0,113060.0,0.01793441]
[1758715285713,1.81346856,113070.0,113060.0,0.05513441]
[1758715286717,1.81346856,113070.0,113060.0,0.03182441]
[1758715293619,1.53467498,113070.0,113060.0,0.33392799]
[1758715293824,1.53467498,113070.0,113060.0,0.05513441]
[1758715296530,1.81346856,113070.0,113060.0,0.05513441]
[1758715296917,1.81346856,113070.0,113060.0,0.03182441]
[1758715297117,1.81346856,113070.0,113060.0,0.05513441]
[1758715298530,1.53467498,113070.0,113060.0,0.05513441]
[1758715305032,1.81346856,113070.0,113060.0,0.05513441]
[1758715305238,1.2558814,113070.0,113060.0,0.05513441]
[1758715305429,1.81346856,113070.0,113060.0,0.05513441]
[1758715305830,1.53467498,113070.0,113060.0,0.05513441]
[1758715307233,1.53467498,113070.0,113060.0,0.16654262]
[1758715308639,0.73295498,113070.0,113060.0,0.16654262]
[1758715308840,1.53463498,113070.0,113060.0,0.16654262]
[1758715310549,1.50372358,113070.0,113060.0,0.16654262]
[1758715311145,1.2558414,113070.0,113060.0,0.16654262]
[1758715311349,1.50372358,113070.0,113060.0,0.16654262]
[1758715311944,1.2558414,113070.0,113060.0,0.16654262]
[1758715312144,1.50372358,113070.0,113060.0,0.16654262]
[1758715316740,0.70204358,113070.0,113060.0,0.16654262]
[1758715316945,1.50372358,113070.0,113060.0,0.16654262]
[1758715317349,0.70204358,113070.0,113060.0,0.16654262]
[1758715317547,1.2558414,113070.0,113060.0,0.25496222]
[1758715317735,0.81463,113070.0,113060.0,1.15223619]
[1758715318046,0.9030419,113070.0,113060.0,0.90435401]
[1758715318248,1.15092408,113070.0,113060.0,1.01576222]
[1758715320342,0.9030419,113070.0,113060.0,1.01576222]
[1758715321451,0.9030419,113070.0,113060.0,0.90435401]
[1758715321654,0.9030419,113070.0,113060.0,1.0157229]
[1758715324457,0.9030419,113070.0,113060.0,0.90435401]
[1758715325257,1.15092408,113070.0,113060.0,0.90435401]
[1758715325560,1.15092408,113070.0,113060.0,1.01569797]
[1758715334249,1.15092408,113070.0,113060.0,0.90435401]
[1758715335160,1.15092408,113070.0,113060.0,1.01567801]
[1758715335556,1.51172408,113070.0,113060.0,0.56645841]
[1758715335756,1.51172408,113070.0,113060.0,0.65487791]
[1758715339462,1.2638419,113070.0,113060.0,0.65487791]
[1758715339659,1.51172408,113070.0,113060.0,0.65487791]
[1758715340655,1.2638419,113070.0,113060.0,0.65487791]
[1758715340856,1.51172408,113070.0,113060.0,0.65487791]
[1758715344371,1.51172408,113070.0,113060.0,0.54355391]
[1758715345370,1.51172408,113070.0,113060.0,0.65493377]
[1758715349668,1.51172408,113070.0,113060.0,0.54355391]
[1758715352977,1.51172408,113070.0,113060.0,0.54323264]
[1758715354675,1.2638419,113070.0,113060.0,0.54323264]
[1758715355077,1.2638419,113070.0,113060.0,0.6546519]
[1758715355277,1.51172408,113070.0,113060.0,0.6546519]
[1758715356480,1.51172408,113070.0,113060.0,0.65526632]
[1758715358181,1.2638419,113070.0,113060.0,0.65526632]
[1758715358381,1.51172408,113070.0,113060.0,0.65526632]
[1758715358984,1.2638419,113070.0,113060.0,0.65526632]
[1758715359184,1.51172408,113070.0,113060.0,0.65526632]
[1758715359380,1.2638419,113070.0,113060.0,0.65526632]
[1758715359583,1.51172408,113070.0,113060.0,0.25526632]
[1758715359988,1.51172408,113070.0,113060.0,0.14384706]
[1758715364790,1.2638419,113070.0,113060.0,0.14384706]
[1758715365091,1.51172408,113070.0,113060.0,0.14384706]
[1758715371391,1.51172408,113070.0,113060.0,0.05542756]
[1758715371597,1.91172408,113070.0,113060.0,0.01389]
[1758715372697,2.22166808,113070.0,113060.0,0.01389]
[1758715373698,2.22166808,113070.0,113060.0,0.03667]
[1758715379609,2.22166808,113070.0,113060.0,0.14813403]
[1758715381606,2.22166808,113070.0,113060.0,0.11146403]
[1758715381801,0.0963713,113060.0,113050.0,0.14638403]
[1758715382006,0.75633124,113060.0,113050.0,0.14638403]
[1758715382312,0.75633124,113060.0,113050.0,0.03492]
[1758715383102,0.75633124,113060.0,113050.0,0.03592]
[1758715383307,0.75633124,113060.0,113050.0,0.01402]
[1758715384596,0.75633124,113060.0,113050.0,0.01502]
[1758715385009,0.76539187,113060.0,113050.0,0.01502]
[1758715386513,0.76539187,113060.0,113050.0,0.03692]
[1758715388420,0.74514502,113060.0,113050.0,0.03692]
[1758715388631,0.76599363,113060.0,113050.0,0.03692]
[1758715390327,0.76599363,113060.0,113050.0,0.1253491]
[1758715390726,1.56759363,113060.0,113050.0,0.1253491]
[1758715391020,1.56759363,113060.0,113050.0,0.03692]
[1758715391825,1.56759363,113060.0,113050.0,0.14838403]
[1758715392013,0.76599363,113060.0,113050.0,0.14838403]
[1758715392217,1.56759363,113060.0,113050.0,0.14838403]
[1758715393428,0.76599363,113060.0,113050.0,0.14838403]
[1758715393727,1.56759363,113060.0,113050.0,0.12648403]
[1758715394926,1.56759363,113060.0,113050.0,0.01502]
[1758715395629,0.76599363,113060.0,113050.0,0.01502]
[1758715395828,1.56759363,113060.0,113050.0,0.01502]
[1758715398229,1.57256363,113060.0,113050.0,0.002]
[1758715398528,2.25147672,113060.0,113050.0,0.002]
[1758715398728,1.97256363,113060.0,113050.0,0.002]
[1758715400333,1.97656363,113060.0,113050.0,0.001]
[1758715401229,1.97656363,113060.0,113040.0,0.1012946]
[1758715401432,1.97656363,113060.0,113040.0,0.1237546]
[1758715401433,0.73609229,113050.0,113040.0,0.1237546]
[1758715402228,0.73609229,113050.0,113040.0,0.03532]
[1758715402924,0.73609229,113050.0,113040.0,0.03732]
[1758715403429,0.73609229,113050.0,113040.0,0.03632]
[1758715403727,0.73609229,113050.0,113040.0,0.03732]
[1758715404635,0.73609229,113050.0,113040.0,0.14878403]
[1758715405436,0.73609229,113050.0,113040.0,0.03732]
[1758715405632,0.73609229,113050.0,113040.0,0.002]
[1758715407936,0.73609229,113050.0,113040.0,0.090437]
[1758715408335,0.73609229,113050.0,113040.0,0.125867]
[1758715409736,1.53773229,113050.0,113040.0,0.125867]
[1758715412739,1.2588192,113050.0,113040.0,0.125867]
[1758715413142,1.53773229,113050.0,113040.0,0.125867]
[1758715413838,1.53773229,113050.0,113040.0,0.40478009]
[1758715414040,1.53773229,113050.0,113040.0,0.80478009]
[1758715414542,1.08850309,113050.0,113040.0,0.80478009]
[1758715414741,0.8980192,113050.0,113040.0,1.25404043]
[1758715414939,1.08850309,113050.0,113040.0,1.25404043]
[1758715419442,1.08850309,113050.0,113040.0,0.85404043]
[1758715420242,1.08850309,113050.0,113040.0,0.96550446]
[1758715421644,1.08850309,113050.0,113040.0,0.85404043]
[1758715421943,0.28686309,113050.0,113040.0,0.85404043]
[1758715422243,1.08866309,113050.0,113040.0,0.96537789]
[1758715427546,1.17709229,113050.0,113040.0,0.96537789]
[1758715428646,1.17709229,113050.0,113040.0,0.85404043]
[1758715430848,1.08866309,113050.0,113040.0,0.85404043]
[1758715431851,1.17709229,113050.0,113040.0,0.85404043]
[1758715432552,0.8981792,113050.0,113040.0,0.57512734]
[1758715437055,0.11687342,113060.0,113050.0,0.14169644]
[1758715437254,0.80959,113060.0,113050.0,0.7504264]
[1758715437446,0.80959,113060.0,113050.0,0.86183684]
[1758715437652,0.80959,113060.0,113050.0,0.95935031]
[1758715438354,0.81059,113060.0,113050.0,0.71142035]
[1758715438855,0.8990113,113060.0,113050.0,0.71142035]
[1758715439357,0.9030113,113060.0,113050.0,0.71142035]
[1758715442258,0.9030113,113060.0,113050.0,0.60000991]
[1758715444560,0.9030113,113060.0,113050.0,0.71133611]
[1758715449463,0.81459,113060.0,113050.0,0.71133611]
[1758715450164,0.9030113,113060.0,113050.0,0.71133611]
[1758715450464,0.005,113060.0,113050.0,1.35926607]
[1758715450662,0.005,113060.0,113050.0,1.24793987]
[1758715451255,0.005,113060.0,113050.0,1.40698811]
[1758715452866,0.005,113060.0,113050.0,1.24793987]
[1758715455779,0.005,113060.0,113050.0,1.23888674]
[1758715455978,0.0934213,113060.0,113050.0,1.23888674]
[1758715456176,0.0934213,113060.0,113050.0,1.39793498]
[1758715456376,0.005,113060.0,113050.0,1.39793498]
[1758715456982,0.005,113060.0,113050.0,1.23888674]
[1758715457281,0.005,113060.0,113050.0,1.24759357]
[1758715458580,0.005,113060.0,113050.0,1.40664181]
[1758715459385,0.005,113060.0,113050.0,1.39793498]
[1758715459882,0.005,113060.0,113050.0,1.40671272]
[1758715460383,0.0934213,113060.0,113050.0,1.40671272]
[1758715460681,0.0934213,113060.0,113050.0,1.39793498]
[1758715461083,0.0934213,113060.0,113050.0,2.19941498]
[1758715469890,0.0934213,113060.0,113050.0,1.95148502]
[1758715470091,0.0934213,113060.0,113050.0,1.83857508]
[1758715470396,0.1013713,113060.0,113050.0,1.59064512]
[1758715470588,0.1013713,113060.0,113050.0,1.43159688]
[1758715472489,0.1013713,113060.0,113050.0,0.63015688]
[1758715472693,0.73072099,113060.0,113050.0,0.14172768]
[1758715473892,0.48279103,113060.0,113050.0,0.23015678]
[1758715481303,0.48279103,113060.0,113050.0,0.34153658]
[1758715482101,0.48279103,113060.0,113050.0,0.25310748]
[1758715483807,1.53216099,113060.0,113050.0,0.05326734]
[1758715484700,1.28423103,113060.0,113050.0,0.05326734]
[1758715485004,1.53216099,113060.0,113050.0,0.05326734]
[1758715485809,1.53216099,113060.0,113050.0,0.16464714]
[1758715490004,1.93216099,113060.0,113050.0,0.16464714]
[1758715490511,1.93216099,113060.0,113050.0,0.05326734]
[1758715494609,1.96317962,113060.0,113050.0,0.05326734]
[1758715495206,1.96317962,113060.0,113050.0,0.03097734]
[1758715495410,1.96317962,113060.0,113050.0,0.01789734]
[1758715496314,0.0963792,113050.0,113040.0,0.1459498]
[1758715496508,0.73612779,113050.0,113040.0,0.1459498]
[1758715496710,0.73612779,113050.0,113040.0,0.23440232]
[1758715497910,0.73612779,113050.0,113040.0,0.23540232]
[1758715499011,0.73612779,113050.0,113040.0,0.32483922]
[1758715499315,0.73612779,113050.0,113040.0,0.23640232]
[1758715501718,0.73612779,113050.0,113040.0,0.12502252]
[1758715502313,0.73612779,113050.0,113040.0,0.03657]
[1758715506427,0.73612779,113050.0,113040.0,0.1250069]
[1758715506723,0.73612779,113050.0,113040.0,0.03657]
[1758715507023,0.73612779,113050.0,113040.0,0.125007]
[1758715512437,0.73612779,113050.0,113040.0,0.03657]
[1758715514934,0.73612779,113050.0,113040.0,0.1479498]
[1758715515637,0.73612779,113050.0,113040.0,0.2363868]
[1758715523542,0.75427196,113050.0,113040.0,0.2363868]
[1758715524045,0.75427196,113050.0,113040.0,0.125007]
[1758715527149,0.75377213,113050.0,113040.0,0.125007]
[1758715532148,0.75377213,113050.0,113040.0,0.2363868]
[1758715532539,0.73612779,113050.0,113040.0,0.2363868]
[1758715533857,0.7540995,113050.0,113040.0,0.2363868]
[1758715534354,0.73612779,113050.0,113040.0,0.2363868]
[1758715543361,0.73612779,113050.0,113040.0,0.1263498]
[1758715545261,0.73612779,113050.0,113040.0,0.2147868]
[1758715546662,0.73612779,113050.0,113040.0,0.2359568]
[1758715548162,0.73612779,113050.0,113040.0,0.124577]
[1758715550862,0.74109779,113050.0,113040.0,0.090437]
[1758715551954,0.73612779,113050.0,113040.0,0.090437]
[1758715554265,0.73612779,113050.0,113040.0,0.002]
[1758715554654,0.7051699,113050.0,113040.0,0.1133798]
[1758715554857,0.7051699,113050.0,113040.0,0.2018168]
[1758715555259,0.7051699,113050.0,113040.0,0.1133798]
[1758715555466,0.7051699,113050.0,113040.0,0.2018167]
[1758715556164,0.7051699,113050.0,113040.0,0.0904369]
[1758715561066,0.7051699,113050.0,113040.0,0.002]
[1758715561871,0.7051699,113050.0,113040.0,0.0904369]
[1758715569577,0.7051699,113050.0,113040.0,0.2018167]
[1758715573981,0.7051699,113050.0,113040.0,0.2381867]
[1758715575485,0.7051699,113050.0,113040.0,0.2157667]
[1758715578189,0.7051699,113050.0,113040.0,0.2018167]
[1758715578691,0.7051699,113050.0,113040.0,0.1133798]
[1758715579193,0.7051699,113050.0,113040.0,0.002]
[1758715580693,0.096387,113040.0,113030.0,0.1113798]
[1758715580888,1.5065377,113040.0,113030.0,0.1113798]
[1758715582398,1.5065377,113040.0,113020.0,0.14465279]
[1758715582399,0.0963948,113030.0,113020.0,0.14465279]
[1758715582600,0.7051855,113030.0,113020.0,0.14465279]
[1758715583298,0.6961855,113030.0,113020.0,0.14465279]
[1758715584092,0.6961855,113030.0,113020.0,0.14665279]
[1758715584297,0.6971855,113030.0,113020.0,0.15165279]
[1758715584996,0.6961855,113030.0,113020.0,0.14565279]
[1758715585698,0.6961855,113030.0,113020.0,0.25703259]
[1758715586999,0.70522093,113030.0,113020.0,0.25703259]
[1758715590707,0.45723023,113030.0,113020.0,0.25703259]
[1758715591002,0.70522093,113030.0,113020.0,0.25703259]
[1758715594703,0.70522093,113030.0,113020.0,0.236737]
[1758715594909,0.70522093,113030.0,113020.0,0.25719906]
[1758715595608,0.6961855,113030.0,113020.0,0.25719906]
[1758715596405,0.6961855,113030.0,113020.0,0.25619906]
[1758715596710,0.6981855,113030.0,113020.0,0.25719906]
[1758715597808,0.7081855,113030.0,113020.0,0.25719906]
[1758715599400,1.52748236,113030.0,113020.0,0.25719906]
[1758715600008,1.52748236,113030.0,113020.0,0.14581926]
[1758715601407,0.27691726,113030.0,113020.0,0.14581926]
[1758715601611,0.83024656,113030.0,113020.0,0.14581926]
[1758715602607,0.82127,113030.0,113020.0,0.14581926]
[1758715604008,1.0692607,113030.0,113020.0,0.14581926]
[1758715604314,1.07795348,113030.0,113020.0,0.14581926]
[1758715604521,1.0692607,113030.0,113020.0,0.25719906]
[1758715606114,1.16665662,113030.0,113020.0,0.25719906]
[1758715607114,1.07821152,113030.0,113020.0,0.25719906]
[1758715607319,1.16665662,113030.0,113020.0,0.25719906]
[1758715607717,1.0692607,113030.0,113020.0,0.25719906]
[1758715609719,1.0692607,113030.0,113020.0,0.14581926]
[1758715610719,1.0692607,113030.0,113020.0,0.25729123]
[1758715611618,1.0692607,113030.0,113020.0,0.14581926]
[1758715612618,1.0692207,113030.0,113020.0,0.14581926]
[1758715612920,0.2679407,113030.0,113020.0,0.14581926]
[1758715613120,1.0692207,113030.0,113020.0,0.14581926]
[1758715614319,1.0692207,113030.0,113020.0,0.25729284]
[1758715614827,0.2679407,113030.0,113020.0,0.25729284]
[1758715615118,1.0692207,113030.0,113020.0,0.25729284]
[1758715615722,0.82123,113030.0,113020.0,0.25729284]
[1758715616418,0.01995,113030.0,113020.0,0.25729284]
[1758715616620,0.2989785,113030.0,113020.0,0.53632134]
[1758715616824,1.1002185,113030.0,113020.0,0.42484776]
[1758715618527,1.1002185,113030.0,113020.0,0.14581926]
[1758715618716,1.1002185,113030.0,113020.0,0.42484776]
[1758715618915,1.1002185,113030.0,113020.0,0.78564776]
[1758715619116,0.01995,113030.0,113020.0,1.27412376]
[1758715619322,0.82119,113030.0,113020.0,1.27412376]
[1758715621123,1.1002185,113030.0,113020.0,1.27412376]
[1758715624331,1.1002185,113030.0,113020.0,1.38559034]
[1758715627440,1.1002185,113030.0,113020.0,1.10656184]
[1758715627627,1.1002185,113030.0,113020.0,1.38559034]
[1758715628028,1.1002185,113030.0,113020.0,1.10656184]
[1758715628236,1.1002185,113030.0,113020.0,1.38559034]
[1758715628533,1.1002185,113030.0,113020.0,1.27412376]
[1758715629430,1.1886636,113030.0,113020.0,0.99509526]
[1758715629935,1.1886636,113030.0,113020.0,1.27412376]
[1758715631334,1.1886636,113030.0,113020.0,0.99509526]
[1758715632537,1.1886636,113030.0,113020.0,1.1541435]
[1758715633034,1.1886636,113030.0,113020.0,0.7933435]
[1758715633537,1.1886636,113030.0,113020.0,0.63429526]
[1758715634838,1.1886636,113030.0,113020.0,0.14581926]
[1758715637035,1.1886636,113030.0,113020.0,0.03477206]
[1758715637435,1.1886636,113030.0,113020.0,0.05686206]
[1758715638846,1.1886636,113030.0,113020.0,0.14531506]
[1758715639143,0.9096351,113030.0,113020.0,0.14531506]
[1758715639442,1.1886636,113030.0,113020.0,0.14531506]
[1758715644543,1.5886636,113030.0,113020.0,0.05686206]
[1758715644743,1.9494636,113030.0,113020.0,0.13294436]
[1758715647641,1.9494636,113030.0,113020.0,0.001]
[1758715649349,1.9494636,113030.0,113020.0,0.1124823]
[1758715651749,1.9494636,113030.0,113020.0,0.001]
[1758715658442,1.5886636,113030.0,113020.0,0.001]
[1758715658649,2.3102636,113030.0,113020.0,0.001]
[1758715659457,1.9102636,113030.0,113020.0,0.001]
[1758715660057,2.1892921,113030.0,113020.0,0.001]
[1758715660957,1.9102636,113030.0,113020.0,0.001]
[1758715661657,2.3102636,113030.0,113020.0,0.001]
[1758715661957,1.9102636,113030.0,113020.0,0.001]
[1758715663351,0.89797828,113000.0,112990.0,0.9438453]
[1758715663554,1.97812678,113000.0,112990.0,0.96405761]
[1758715663751,1.97812678,113000.0,112990.0,1.05253361]
[1758715664260,1.97812678,113000.0,112990.0,1.05253449]
[1758715664958,1.97812678,113000.0,112990.0,1.06053449]
[1758715665253,1.97812678,113000.0,112990.0,0.94905219]
[1758715665852,1.97812678,113000.0,112990.0,0.94105219]
[1758715666052,1.97912678,113000.0,112990.0,0.94805219]
[1758715666751,1.70009828,113000.0,112990.0,0.94805219]
[1758715666957,1.97912678,113000.0,112990.0,0.94605219]
[1758715667547,1.70009828,113000.0,112990.0,1.05731198]
[1758715667748,1.97912678,113000.0,112990.0,1.05731198]
[1758715667957,1.97912678,113000.0,112990.0,1.03709879]
[1758715669066,1.97912678,113000.0,112990.0,0.75807029]
[1758715669258,1.97912678,113000.0,112990.0,1.03709879]
[1758715669762,1.70009828,113000.0,112990.0,1.03709879]
[1758715669964,1.97912678,113000.0,112990.0,1.03709879]
[1758715670364,1.70009828,113000.0,112990.0,1.03709879]
[1758715670564,0.87793828,113000.0,112990.0,1.03709879]
[1758715670766,1.67905828,113000.0,112990.0,1.03709879]
[1758715672164,1.67905828,113000.0,112990.0,1.43709879]
[1758715672467,0.87793828,113000.0,112990.0,1.43709879]
[1758715672663,0.80006428,113000.0,112990.0,2.23821879]
[1758715672856,0.66080625,113000.0,112990.0,2.56503574]
[1758715673056,0.61293345,113000.0,112990.0,2.28600724]
[1758715673261,0.48879165,113000.0,112990.0,2.6275568]
[1758715674368,0.42960025,113000.0,112990.0,2.6275568]
[1758715674569,0.27489195,113000.0,112990.0,2.46850856]
[1758715676580,0.27489195,113000.0,112990.0,2.43750762]
[1758715677385,0.14903445,113000.0,112990.0,2.43750762]
[1758715677681,0.06742805,113000.0,112990.0,2.43750762]
[1758715677875,5e-08,113000.0,112990.0,2.43750762]
[1758715678685,5e-08,113000.0,112990.0,2.59650416]
[1758715680983,5e-08,113000.0,112990.0,2.43750762]
[1758715681685,5e-08,113000.0,112990.0,2.59648236]
[1758715683380,5e-08,113000.0,112990.0,2.43750762]
[1758715683684,5e-08,113000.0,112990.0,2.59647561]
[1758715686181,5e-08,113000.0,112990.0,2.43750762]
[1758715690793,5e-08,113000.0,112990.0,2.59647561]
[1758715700507,5e-08,113000.0,112990.0,2.43750762]
[1758715701002,0.110863,113020.0,113010.0,0.1233808]
[1758715701202,0.110863,113020.0,113010.0,0.66405945]
[1758715701606,0.110863,113020.0,113010.0,0.75255894]
[1758715702007,0.110863,113020.0,113010.0,0.59342206]
[1758715702208,0.112863,113020.0,113010.0,0.59442206]
[1758715702507,0.113863,113020.0,113010.0,0.59442206]
[1758715702709,0.02541,113020.0,113010.0,0.59442206]
[1758715704304,0.02541,113020.0,113010.0,0.84244962]
[1758715707408,0.1138616,113020.0,113010.0,0.84244962]
[1758715707610,0.1138616,113020.0,113010.0,0.59442206]
[1758715707810,0.1138616,113020.0,113010.0,0.84244962]
[1758715708010,0.1138616,113020.0,113010.0,0.48164962]
[1758715708415,0.1138616,113020.0,113010.0,0.23362206]
[1758715711510,0.1138616,113020.0,113010.0,0.39275894]
[1758715712314,0.1138616,113020.0,113010.0,0.23362206]
[1758715723820,0.1138616,113020.0,113010.0,0.39275894]
[1758715724523,0.36188916,113020.0,113010.0,0.39275804]
[1758715724723,1.94188851,113020.0,113010.0,0.30429814]
[1758715725022,1.94188851,113020.0,113010.0,0.21579865]
[1758715725422,1.94188851,113020.0,113010.0,0.05666177]
[1758715725721,1.94188851,113020.0,113010.0,0.02174177]
[1758715725722,1.94685851,113020.0,113010.0,0.02174177]
[1758715726122,1.94685851,113020.0,113010.0,0.13321023]